fUSD/lending_fUSD_20240220
["ID","MTS","AMOUNT","RATE_DAILY","PERIOD"]
[314626745,1708467050619,-151.022178,0.00045848,47]
[314626746,1708467050628,-10000.0,0.0004588,25]
[314626747,1708467050637,-200.0,0.000459,20]
[314626748,1708467050646,-200.0,0.000459,22]
[314626749,1708467050656,-3000.0,0.000459,65]
[314626750,1708467050665,-9654.066924,0.00045906,7]
[314626751,1708467050674,-3000.0,0.0004591,65]
[314626752,1708467050683,-28959.84603228,0.00045913,15]
[314626753,1708467050692,-5496.229599,0.0004592,65]
[314626754,1708467050701,-159.0,0.00045932,30]
[314626755,1708467050710,-151.022178,0.00045948,47]
[314626756,1708467050719,-5832.940782,0.00045968,2]
[314626757,1708467050728,-400.0,0.0004597,3]
[314626758,1708467050737,-200.0,0.00045987,45]
[314626759,1708467050746,-100000.0,0.00046,36]
[314626760,1708467050755,-1000.0,0.00046,2]
[314626761,1708467050764,-10000.0,0.00046,5]
[314626762,1708467050773,-1086.0,0.00046,5]
[314626763,1708467050782,-643.31119786,0.00046,120]
[314626764,1708467050791,-10000.0,0.00046,120]
[314626765,1708467050800,-2791.5,0.00046,15]
[314626766,1708467050810,-1740.62,0.00046,7]
[314626767,1708467050819,-161.61932896,0.00046012,30]
[314626768,1708467050829,-175.0,0.00046027,90]
[314626769,1708467050838,-225.062062,0.00046027,14]
[314626770,1708467050847,-158.0,0.00046027,90]
[314626771,1708467050857,-838.38,0.00046027,2]
[314626772,1708467050867,-636.82,0.00046027,2]
[314626773,1708467050876,-151.022178,0.00046048,48]
[314626774,1708467050885,-870.53467663,0.0004606,120]
[314626775,1708467050894,-161.61932896,0.0004609,30]
[314626776,1708467050904,-153.81175386,0.00046103,30]
[314626777,1708467050913,-365.87427047,0.00046125,41]
[314626778,1708467050922,-151.022178,0.00046148,47]
[314626779,1708467050931,-1098.16,0.000462,7]
[314626780,1708467050941,-151.022178,0.00046248,48]
[314626781,1708467050950,-248.35731886,0.00046279,30]
[314626782,1708467050960,-183.761673,0.0004633,30]
[314626783,1708467050970,-3932.2812419,0.00046335,21]
[314626784,1708467050979,-151.022178,0.00046348,48]
[314626785,1708467050989,-177.78639795,0.00046351,30]
[314626786,1708467050998,-161.61932896,0.00046381,30]
[314626787,1708467051008,-152.70128307,0.00046382,30]
[314626788,1708467051017,-151.93088736,0.00046383,30]
[314626789,1708467051027,-200.0,0.000464,23]
[314626790,1708467051036,-833.61,0.00046406,2]
[314626791,1708467051171,-850.11,0.00046424,120]
[314626792,1708467051183,-153.6373961,0.00046441,30]
[314626793,1708467051192,-151.022178,0.00046448,47]
[314626794,1708467051202,-248.35731886,0.00046478,30]
[314626795,1708467051211,-159.0,0.00046479,30]
[314626796,1708467051221,-248.35731886,0.0004648,30]
[314626797,1708467051230,-153.81175386,0.00046492,30]
[314626798,1708467051239,-4654.770753,0.000465,19]
[314626799,1708467051248,-1740.62,0.000465,7]
[314626800,1708467051258,-748.64,0.00046511,2]
[314626801,1708467051267,-161.61932896,0.00046525,30]
[314626802,1708467051277,-151.022178,0.00046548,48]
[314626803,1708467051287,-400.0,0.0004657,3]
[314626804,1708467051297,-51628.55124755,0.00046574,2]
[314626805,1708467051306,-202.835,0.00046575,2]
[314626806,1708467051316,-382.06227789,0.00046575,30]
[314626807,1708467051325,-151.0,0.00046575,14]
[314626808,1708467051335,-151.0,0.00046575,14]
[314626809,1708467051344,-151.0,0.00046575,14]
[314626810,1708467051356,-151.0,0.00046575,14]
[314626811,1708467051366,-151.0,0.00046575,14]
[314626812,1708467051378,-151.0,0.00046575,14]
[314626813,1708467051387,-151.0,0.00046575,14]
[314626814,1708467051398,-151.0,0.00046575,14]
[314626815,1708467051407,-151.0,0.00046575,14]
[314626816,1708467051417,-151.0,0.00046575,14]
[314626817,1708467051428,-151.0,0.00046575,14]
[314626818,1708467051437,-151.0,0.00046575,14]
[314626819,1708467051448,-151.0,0.00046575,14]
[314626820,1708467051458,-151.0,0.00046575,14]
[314626821,1708467051467,-217.318348,0.00046575,14]
[314626822,1708467051477,-151.0,0.00046575,14]
[314626823,1708467051487,-151.0,0.00046575,14]
[314626824,1708467051497,-154.507807,0.00046575,14]
[314626825,1708467051506,-151.0,0.00046575,14]
[314626826,1708467051516,-151.0,0.00046575,14]
[314626827,1708467051525,-151.0,0.00046575,14]
[314626828,1708467051535,-243.914674,0.00046575,14]
[314626829,1708467051545,-151.0,0.00046575,14]
[314626830,1708467051554,-151.0,0.00046575,14]
[314626831,1708467051569,-151.0,0.00046575,14]
[314626832,1708467051578,-151.0,0.00046575,14]
[314626833,1708467051587,-151.0,0.00046575,14]
[314626834,1708467051597,-151.0,0.00046575,14]
[314626835,1708467051609,-151.0,0.00046575,14]
[314626836,1708467051618,-179.657724,0.00046575,14]
[314626837,1708467051628,-151.0,0.00046575,14]
[314626838,1708467051637,-151.0,0.00046575,14]
[314626839,1708467051646,-204.637718,0.00046575,14]
[314626840,1708467051655,-151.0,0.00046575,14]
[314626841,1708467051664,-340.53962,0.00046575,14]
[314626842,1708467051673,-340.53962,0.00046575,14]
[314626843,1708467051683,-151.0,0.00046575,14]
[314626844,1708467051692,-151.0,0.00046575,14]
[314626845,1708467051701,-240.365362,0.00046575,14]
[314626846,1708467051710,-151.0,0.00046575,14]
[314626847,1708467051720,-151.0,0.00046575,14]
[314626848,1708467051731,-151.0,0.00046575,14]
[314626849,1708467051741,-151.0,0.00046575,7]
[314626850,1708467051750,-151.0,0.00046575,14]
[314626851,1708467051761,-151.0,0.00046575,14]
[314626852,1708467051770,-151.0,0.00046575,14]
[314626853,1708467051779,-151.0,0.00046575,14]
[314626854,1708467051788,-151.0,0.00046575,14]
[314626855,1708467051797,-220.017357,0.00046575,14]
[314626856,1708467051806,-220.017357,0.00046575,14]
[314626857,1708467051816,-151.0,0.00046575,14]
[314626858,1708467051825,-152.634105,0.00046575,14]
[314626859,1708467051834,-151.0,0.00046575,2]
[314626860,1708467051843,-151.0,0.00046575,2]
[314626861,1708467051854,-152.634105,0.00046575,14]
[314626862,1708467051864,-151.0,0.00046575,14]
[314626863,1708467051873,-151.0,0.00046575,2]
[314626864,1708467051882,-151.0,0.00046575,2]
[314626865,1708467051892,-242.874879,0.00046575,14]
[314626866,1708467051901,-151.0,0.00046575,14]
[314626867,1708467051911,-151.0,0.00046575,14]
[314626868,1708467051920,-151.0,0.00046575,14]
[314626869,1708467051929,-151.0,0.00046575,14]
[314626870,1708467051939,-151.0,0.00046575,14]
[314626871,1708467051949,-151.0,0.00046575,14]
[314626872,1708467051959,-151.0,0.00046575,14]
[314626873,1708467051968,-151.0,0.00046575,14]
[314626874,1708467051977,-176.554772,0.00046575,14]
[314626875,1708467051987,-176.554772,0.00046575,14]
[314626876,1708467051996,-151.0,0.00046575,14]
[314626877,1708467052005,-176.554772,0.00046575,14]
[314626878,1708467052015,-176.554772,0.00046575,14]
[314626879,1708467052025,-151.0,0.00046575,14]
[314626880,1708467052034,-154.516623,0.00046575,14]
[314626881,1708467052043,-560.511972,0.00046575,14]
[314626882,1708467052053,-560.511972,0.00046575,14]
[314626883,1708467052062,-151.0,0.00046575,14]
[314626884,1708467052071,-151.0,0.00046575,14]
[314626885,1708467052081,-560.511972,0.00046575,14]
[314626886,1708467052090,-560.511972,0.00046575,14]
[314626887,1708467052099,-380.491151,0.00046575,14]
[314626888,1708467052108,-380.491151,0.00046575,14]
[314626889,1708467052117,-380.491151,0.00046575,14]
[314626890,1708467052126,-380.491151,0.00046575,14]
[314626891,1708467052136,-151.0,0.00046575,14]
[314626892,1708467052145,-151.0,0.00046575,14]
[314626893,1708467052154,-151.0,0.00046575,14]
[314626894,1708467052163,-151.0,0.00046575,14]
[314626895,1708467052173,-151.0,0.00046575,14]
[314626896,1708467052183,-151.0,0.00046575,14]
[314626897,1708467052192,-299.375951,0.00046575,14]
[314626898,1708467052201,-151.0,0.00046575,14]
[314626899,1708467052210,-2307.447409,0.00046575,14]
[314626900,1708467052220,-151.0,0.00046575,14]
[314626901,1708467052229,-2307.447409,0.00046575,14]
[314626902,1708467052239,-151.0,0.00046575,14]
[314626903,1708467052248,-151.0,0.00046575,14]
[314626904,1708467052258,-248.35731886,0.00046589,30]
[314626905,1708467052268,-1283.38,0.0004659,2]
[314626906,1708467052277,-161.61932896,0.00046646,30]
[314626907,1708467052286,-165.83,0.00046653,2]
[314626908,1708467052295,-5000.0,0.00046658,4]
[314626909,1708467052304,-166.18,0.00046665,2]
[314626910,1708467052314,-53899.8491699,0.00046681,7]
[314626911,1708467052324,-295.07045192,0.00046681,7]
[314626912,1708467052336,-309.13171609,0.00046681,7]
[314626913,1708467052349,-296.75290562,0.00046681,7]
[314626914,1708467052359,-151.0,0.00046681,14]
[314626915,1708467052368,-151.0,0.00046681,14]
[314626916,1708467052376,-151.0,0.00046681,14]
[314626917,1708467052387,-151.0,0.00046681,14]
[314626918,1708467052395,-1338.0,0.00046683,30]
[314626919,1708467052405,-2379.0,0.000467,115]
[314626920,1708467052413,-153.6373961,0.00046747,30]
[314626921,1708467052424,-151.022178,0.00046748,47]
[314626922,1708467052434,-161.61932896,0.00046787,30]
[314626923,1708467052443,-248.35731886,0.00046794,30]
[314626924,1708467052454,-6000.0,0.000468,30]
[314626925,1708467052464,-1098.16,0.000468,7]
[314626926,1708467052474,-153.6373961,0.00046817,30]
[314626927,1708467052484,-248.35731886,0.00046822,30]
[314626928,1708467052494,-153.81175386,0.00046825,30]
[314626929,1708467052503,-50000.0,0.00046838,30]
[314626930,1708467052513,-151.0,0.00046838,14]
[314626931,1708467052522,-220.017357,0.00046838,14]
[314626932,1708467052532,-220.017357,0.00046838,14]
[314626933,1708467052542,-151.0,0.00046838,14]
[314626934,1708467052550,-152.634105,0.00046838,14]
[314626935,1708467052560,-151.0,0.00046838,2]
[314626936,1708467052570,-152.634105,0.00046838,14]
[314626937,1708467052579,-244.58794,0.00046838,2]
[314626938,1708467052588,-151.0,0.00046838,14]
[314626939,1708467052597,-151.0,0.00046838,14]
[314626940,1708467052607,-151.0,0.00046838,14]
[314626941,1708467052616,-2000.0,0.00046847,30]
[314626942,1708467052626,-500.0,0.00046847,30]
[314626943,1708467052635,-305.0,0.00046847,30]
[314626944,1708467052644,-302.0,0.00046847,30]
[314626945,1708467052654,-503.0,0.00046847,30]
[314626946,1708467052663,-161.61932896,0.00046848,30]
[314626947,1708467052672,-248.35731886,0.00046848,30]
[314626948,1708467052681,-534.20853987,0.00046849,30]
[314626949,1708467052691,-225.062062,0.00046849,14]
[314626950,1708467052701,-153.6373961,0.00046869,30]
[314626951,1708467052710,-200.0,0.000469,22]
[314626952,1708467052719,-200.0,0.000469,23]
[314626953,1708467052729,-248.35731886,0.00046904,30]
[314626954,1708467052738,-9654.066924,0.00046904,8]
[314626955,1708467052747,-248.35731886,0.0004693,30]
[314626956,1708467052756,-430.0,0.00046945,2]
[314626957,1708467052765,-1006.0,0.00046945,2]
[314626958,1708467052774,-859.0,0.00046945,2]
[314626959,1708467052783,-276.0,0.00046945,2]
[314626960,1708467052792,-337.0,0.00046945,2]
[314626961,1708467052801,-1138.0,0.00046945,2]
[314626962,1708467052810,-2888.0,0.00046945,2]
[314626963,1708467052819,-321.0,0.00046945,2]
[314626964,1708467052828,-150.0,0.00046945,2]
[314626965,1708467052837,-454.0,0.00046945,2]
[314626966,1708467052846,-151.0,0.00046945,14]
[314626967,1708467052856,-340.53962,0.00046945,14]
[314626968,1708467052865,-340.53962,0.00046945,14]
[314626969,1708467052876,-151.0,0.00046945,14]
[314626970,1708467052885,-151.0,0.00046945,14]
[314626971,1708467052894,-151.0,0.00046945,14]
[314626972,1708467052903,-267.631042,0.00046945,14]
[314626973,1708467052912,-151.0,0.00046945,14]
[314626974,1708467052921,-151.0,0.00046945,7]
[314626975,1708467052930,-151.0,0.00046945,14]
[314626976,1708467052939,-151.0,0.00046945,14]
[314626977,1708467052948,-151.0,0.00046945,14]
[314626978,1708467052957,-185.859569,0.00046945,14]
[314626979,1708467052966,-380.491151,0.00046945,14]
[314626980,1708467052975,-380.491151,0.00046945,14]
[314626981,1708467052985,-151.0,0.00046945,14]
[314626982,1708467052994,-151.0,0.00046945,14]
[314626983,1708467053004,-168.52309473,0.00046957,30]
[314626984,1708467053013,-210392.8812634,0.00046968,2]
[314626985,1708467053022,-158.80638428,0.00046972,30]
[314626986,1708467053032,-176.554772,0.00046985,14]
[314626987,1708467053042,-176.554772,0.00046985,14]
[314626988,1708467053052,-151.0,0.00046985,14]
[314626989,1708467053062,-560.511972,0.00046985,14]
[314626990,1708467053073,-560.511972,0.00046985,14]
[314626991,1708467053083,-151.0,0.00046986,14]
[314626992,1708467053093,-406.0,0.00046986,2]
[314626993,1708467053105,-917.04,0.00046986,2]
[314626994,1708467053114,-917.04,0.00046986,2]
[314626995,1708467053124,-406.0,0.00046986,2]
[314626996,1708467053133,-917.04,0.00046986,2]
[314626997,1708467053143,-406.0,0.00046986,2]
[314626998,1708467053153,-406.0,0.00046986,2]
[314626999,1708467053163,-917.04,0.00046986,2]
[314627000,1708467053173,-917.04,0.00046986,2]
[314627001,1708467053182,-917.04,0.00046986,2]
[314627002,1708467053192,-917.04,0.00046986,2]
[314627003,1708467053201,-917.04,0.00046986,2]
[314627004,1708467053210,-602.29,0.00046986,2]
[314627005,1708467053219,-200.0,0.00046987,46]
[314627006,1708467053228,-100000.0,0.00047,37]
[314627007,1708467053237,-2203.25730656,0.00047,120]
[314627008,1708467053246,-3223.74091725,0.00047,15]
[314627009,1708467053255,-5000.0,0.00047,120]
[314627010,1708467053264,-151.0,0.00047,14]
[314627011,1708467053273,-300.0,0.00047,48]
[314627012,1708467053283,-151.0,0.00047,14]
[314627013,1708467053292,-151.0,0.00047,14]
[314627014,1708467053301,-188.918568,0.00047,14]
[314627015,1708467053311,-151.0,0.00047,14]
[314627016,1708467053320,-151.0,0.00047,14]
[314627017,1708467053329,-215.29967,0.00047,14]
[314627018,1708467053341,-151.0,0.00047,14]
[314627019,1708467053351,-1740.62,0.00047,7]
[314627020,1708467053363,-174.0,0.00047027,30]
[314627021,1708467053371,-214.0,0.00047054,35]
[314627022,1708467053382,-1760.43204822,0.00047056,5]
[314627023,1708467053391,-161.61932896,0.00047088,30]
[314627024,1708467053400,-151.93088736,0.00047103,30]
[314627025,1708467053410,-3932.2812419,0.00047117,22]
[314627026,1708467053421,-187.5,0.00047123,120]
[314627027,1708467053430,-151.022178,0.00047148,48]
[314627028,1708467053439,-153.81175386,0.00047158,30]
[314627029,1708467053450,-1338.0,0.00047164,30]
[314627030,1708467053459,-153.81175386,0.00047221,30]
[314627031,1708467053468,-248.35731886,0.00047236,30]
[314627032,1708467053478,-405.67,0.0004726,2]
[314627033,1708467053486,-153.6373961,0.00047289,30]
[314627034,1708467053496,-153.81175386,0.00047296,30]
[314627035,1708467053505,-1000.0,0.00047315,30]
[314627036,1708467053513,-1000.0,0.00047318,30]
[314627037,1708467053644,-248.35731886,0.0004732,30]
[314627038,1708467053653,-1000.0,0.00047335,30]
[314627039,1708467053663,-1618.78693435,0.0004735,2]
[314627040,1708467053672,-456.93076856,0.0004735,2]
[314627041,1708467053682,-365.87427047,0.0004735,42]
[314627042,1708467053691,-1694.9035845,0.0004735,2]
[314627043,1708467053700,-1843.84193528,0.00047396,5]
[314627044,1708467053709,-2000.0,0.000474,2]
[314627045,1708467053719,-1098.16,0.000474,7]
[314627046,1708467053728,-577.51,0.000474,5]
[314627047,1708467053737,-577.51,0.000474,5]
[314627048,1708467053747,-577.51,0.000474,5]
[314627049,1708467053757,-577.51,0.000474,5]
[314627050,1708467053766,-577.51,0.000474,5]
[314627051,1708467053775,-577.51,0.000474,5]
[314627052,1708467053785,-577.51,0.000474,5]
[314627053,1708467053794,-577.51,0.000474,5]
[314627054,1708467053803,-577.51,0.000474,5]
[314627055,1708467053813,-577.51,0.000474,5]
[314627056,1708467053823,-577.51,0.000474,5]
[314627057,1708467053832,-577.51,0.000474,5]
[314627058,1708467053841,-577.51,0.000474,5]
[314627059,1708467053851,-577.51,0.000474,5]
[314627060,1708467053861,-577.51,0.000474,5]
[314627061,1708467053871,-577.51,0.000474,5]
[314627062,1708467053880,-577.51,0.000474,5]
[314627063,1708467053889,-577.51,0.000474,5]
[314627064,1708467053899,-577.51,0.000474,5]
[314627065,1708467053909,-577.51,0.000474,5]
[314627066,1708467053919,-151.0,0.000474,14]
[314627067,1708467053928,-151.0,0.000474,14]
[314627068,1708467053937,-2307.447409,0.000474,14]
[314627069,1708467053948,-151.0,0.000474,14]
[314627070,1708467053957,-2307.447409,0.000474,14]
[314627071,1708467053967,-151.0,0.000474,14]
[314627072,1708467053977,-151.0,0.000474,14]
[314627073,1708467053987,-152.70128307,0.00047409,34]
[314627074,1708467053997,-248.35731886,0.00047423,30]
[314627075,1708467054006,-157.73153818,0.00047437,30]
[314627076,1708467054015,-151.022178,0.00047448,48]
[314627077,1708467054025,-248.35731886,0.00047477,30]
[314627078,1708467054035,-10000.0,0.000475,120]
[314627079,1708467054044,-3018.65527468,0.000475,30]
[314627080,1708467054054,-1740.62,0.000475,7]
[314627081,1708467054064,-1000.0,0.00047535,30]
[314627082,1708467054073,-1000.0,0.00047547,30]
[314627083,1708467054083,-161.61932896,0.00047547,30]
[314627084,1708467054092,-1000.0,0.00047564,30]
[314627085,1708467054101,-150.0,0.00047566,7]
[314627086,1708467054112,-150.0,0.00047566,7]
[314627087,1708467054122,-5000.0,0.00047567,4]
[314627088,1708467054131,-174.0,0.00047575,30]
[314627089,1708467054141,-161.61932896,0.00047598,30]
[314627090,1708467054150,-1338.0,0.00047645,30]
[314627091,1708467054160,-248.35731886,0.00047665,30]
[314627092,1708467054169,-5800.0,0.00047668,7]
[314627093,1708467054179,-161.61932896,0.00047671,30]
[314627094,1708467054188,-225.062062,0.00047671,14]
[314627095,1708467054197,-5800.0,0.00047676,7]
[314627096,1708467054206,-5800.0,0.00047684,7]
[314627097,1708467054215,-5800.0,0.00047685,7]
[314627098,1708467054224,-5800.0,0.00047692,7]
[314627099,1708467054233,-5800.0,0.00047693,7]
[314627100,1708467054243,-80592.90613465,0.000477,60]
[314627101,1708467054252,-5800.0,0.00047701,7]
[314627102,1708467054262,-5800.0,0.00047702,7]
[314627103,1708467054272,-248.35731886,0.00047708,30]
[314627104,1708467054281,-5800.0,0.00047709,7]
[314627105,1708467054290,-5800.0,0.0004771,7]
[314627106,1708467054299,-5800.0,0.00047718,7]
[314627107,1708467054308,-151.0,0.00047718,14]
[314627108,1708467054317,-151.0,0.00047718,7]
[314627109,1708467054327,-151.0,0.00047718,7]
[314627110,1708467054339,-151.0,0.00047718,14]
[314627111,1708467054351,-151.0,0.00047718,14]
[314627112,1708467054362,-1656.685569,0.00047718,14]
[314627113,1708467054371,-1656.685569,0.00047718,14]
[314627114,1708467054381,-398.947348,0.00047718,14]
[314627115,1708467054391,-398.947348,0.00047718,14]
[314627116,1708467054400,-178.069255,0.00047718,14]
[314627117,1708467054409,-151.0,0.00047718,14]
[314627118,1708467054419,-258.941035,0.00047718,14]
[314627119,1708467054429,-178.069255,0.00047718,14]
[314627120,1708467054438,-151.0,0.00047718,7]
[314627121,1708467054448,-258.941035,0.00047718,14]
[314627122,1708467054458,-151.0,0.00047718,14]
[314627123,1708467054468,-151.0,0.00047718,14]
[314627124,1708467054478,-151.0,0.00047718,14]
[314627125,1708467054487,-5800.0,0.00047719,7]
[314627126,1708467054496,-5800.0,0.00047727,7]
[314627127,1708467054505,-5800.0,0.00047727,7]
[314627128,1708467054515,-5800.0,0.00047727,7]
[314627129,1708467054523,-5800.0,0.00047728,7]
[314627130,1708467054533,-5800.0,0.00047735,7]
[314627131,1708467054542,-248.35731886,0.00047742,30]
[314627132,1708467054552,-153.6373961,0.00047761,30]
[314627133,1708467054561,-10000.0,0.000478,5]
[314627134,1708467054570,-48557.490326,0.000478,30]
[314627135,1708467054578,-1959.35794099,0.000478,7]
[314627136,1708467054587,-167.61786597,0.00047817,30]
[314627137,1708467054597,-153.6373961,0.00047853,30]
[314627138,1708467054606,-160.64,0.00047854,2]
[314627139,1708467054615,-192.841516,0.00047877,30]
[314627140,1708467054624,-166.203312,0.00047877,30]
[314627141,1708467054634,-153.892779,0.00047877,30]
[314627142,1708467054643,-3853.46654368,0.00047877,2]
[314627143,1708467054652,-3374.654963,0.0004788,30]
[314627144,1708467054662,-25246.218584,0.0004788,30]
[314627145,1708467054671,-6003.423805,0.0004788,30]
[314627146,1708467054680,-2287.018593,0.0004788,30]
[314627147,1708467054689,-9398.94212,0.0004788,30]
[314627148,1708467054698,-7941.698043,0.0004788,30]
[314627149,1708467054707,-24872.383277,0.0004788,30]
[314627150,1708467054716,-13055.743009,0.0004788,30]
[314627151,1708467054725,-1221.176434,0.0004788,30]
[314627152,1708467054735,-5252.61586,0.0004788,30]
[314627153,1708467054744,-2004.049566,0.0004788,30]
[314627154,1708467054753,-6390.489781,0.0004788,30]
[314627155,1708467054762,-19270.942776,0.0004788,30]
[314627156,1708467054771,-2382.509413,0.0004788,30]
[314627157,1708467054781,-3761.20498,0.0004788,30]
[314627158,1708467054790,-1583.665255,0.0004788,30]
[314627159,1708467054799,-2320.075287,0.0004788,30]
[314627160,1708467054808,-16000.902352,0.0004788,30]
[314627161,1708467054817,-12689.765573,0.0004788,30]
[314627162,1708467054826,-24031.619463,0.0004788,30]
[314627163,1708467054835,-18256.441497,0.0004788,30]
[314627164,1708467054844,-1714.657459,0.0004788,30]
[314627165,1708467054854,-1770.08975,0.0004788,30]
[314627166,1708467054863,-5917.605675,0.0004788,30]
[314627167,1708467054872,-7857.000047,0.0004788,30]
[314627168,1708467054882,-14966.66788855,0.00047888,10]
[314627169,1708467054891,-771.44744,0.00047899,5]
[314627170,1708467054901,-200.0,0.000479,23]
[314627171,1708467054912,-3932.2812419,0.000479,23]
[314627172,1708467054922,-308.1492125,0.00047903,3]
[314627173,1708467054933,-9654.066924,0.00047903,9]
[314627174,1708467054943,-305.59,0.00047908,2]
[314627175,1708467054955,-180.43276535,0.00047925,30]
[314627176,1708467054966,-170.35,0.00047933,2]
[314627177,1708467054977,-608.505,0.00047945,7]
[314627178,1708467054988,-500.0,0.00047945,60]
[314627179,1708467054998,-405.51,0.00047945,2]
[314627180,1708467055008,-150.92,0.00047945,2]
[314627181,1708467055018,-151.022178,0.00047948,49]
[314627182,1708467055028,-151.0,0.00047948,14]
[314627183,1708467055038,-151.0,0.00047948,14]
[314627184,1708467055047,-161.61932896,0.00047955,30]
[314627185,1708467055056,-1477.5924785,0.00047967,2]
[314627186,1708467055066,-400.0,0.0004797,3]
[314627187,1708467055075,-200.0,0.00047987,47]
[314627188,1708467055085,-100000.0,0.00048,38]
[314627189,1708467055094,-10690.72265544,0.00048,15]
[314627190,1708467055106,-260.53609423,0.00048,30]
[314627191,1708467055115,-12550.0,0.00048,30]
[314627192,1708467055125,-14000.0,0.00048,7]
[314627193,1708467055135,-14430.0,0.00048,14]
[314627194,1708467055145,-125340.31,0.00048,5]
[314627195,1708467055154,-10034.27150519,0.00048,120]
[314627196,1708467055163,-6190.28072426,0.00048,90]
[314627197,1708467055172,-1098.16,0.00048,7]
[314627198,1708467055181,-300.0,0.00048,49]
[314627199,1708467055191,-151.0,0.00048,14]
[314627200,1708467055200,-151.0,0.00048,14]
[314627201,1708467055210,-151.0,0.00048,14]
[314627202,1708467055220,-151.0,0.00048,14]
[314627203,1708467055230,-151.0,0.00048,14]
[314627204,1708467055240,-151.0,0.00048,14]
[314627205,1708467055249,-151.0,0.00048,14]
[314627206,1708467055258,-151.0,0.00048,14]
[314627207,1708467055268,-151.0,0.00048,14]
[314627208,1708467055277,-340.53962,0.00048,14]
[314627209,1708467055287,-340.53962,0.00048,14]
[314627210,1708467055296,-151.0,0.00048,14]
[314627211,1708467055306,-151.0,0.00048,14]
[314627212,1708467055315,-151.0,0.00048,14]
[314627213,1708467055325,-151.0,0.00048,14]
[314627214,1708467055334,-151.0,0.00048,7]
[314627215,1708467055343,-151.0,0.00048,14]
[314627216,1708467055356,-151.0,0.00048,14]
[314627217,1708467055368,-151.0,0.00048,14]
[314627218,1708467055378,-220.017357,0.00048,14]
[314627219,1708467055387,-220.017357,0.00048,14]
[314627220,1708467055398,-151.0,0.00048,14]
[314627221,1708467055407,-152.634105,0.00048,14]
[314627222,1708467055417,-151.0,0.00048,2]
[314627223,1708467055427,-152.634105,0.00048,14]
[314627224,1708467055440,-151.0,0.00048,14]
[314627225,1708467055457,-197.200938,0.00048,14]
[314627226,1708467055471,-151.0,0.00048,14]
[314627227,1708467055480,-202.572726,0.00048,25]
[314627228,1708467055490,-176.554772,0.00048,14]
[314627229,1708467055499,-176.554772,0.00048,14]
[314627230,1708467055509,-560.511972,0.00048,14]
[314627231,1708467055518,-560.511972,0.00048,14]
[314627232,1708467055527,-380.491151,0.00048,14]
[314627233,1708467055537,-380.491151,0.00048,14]
[314627234,1708467055546,-151.0,0.00048,14]
[314627235,1708467055555,-5000.72,0.00048,2]
[314627236,1708467055564,-317.14,0.00048,2]
[314627237,1708467055574,-1740.62,0.00048,7]
[314627238,1708467055583,-157.73153818,0.00048069,30]
[314627239,1708467055593,-157.73153818,0.00048073,30]
[314627240,1708467055602,-153.81175386,0.00048122,30]
[314627241,1708467055612,-174.0,0.00048123,30]
[314627242,1708467055621,-397.23596142,0.00048126,30]
[314627243,1708467055631,-1338.0,0.00048126,30]
[314627244,1708467055640,-1790.25183029,0.00048126,30]